bitfinex/quotes_ETHUSD_20260111
["timestamp","ask_amount","ask_price","bid_price","bid_amount"]
[1768139642550,0.002,3111.4,3111.2,0.9587173]
[1768139647797,0.002,3111.4,3111.3,0.99025844]
[1768139663974,0.002,3111.4,3111.1,4.11823898]
[1768139672723,0.002,3111.4,3111.2,0.90394179]
[1768139674905,0.002,3111.4,3111.2,4.11811734]
[1768139679232,0.002,3111.4,3111.2,3.21417555]
[1768139681030,0.002,3111.7,3111.3,0.98461587]
[1768139684663,0.002,3111.7,3111.2,3.98070783]
[1768139685139,0.002,3111.7,3111.2,4.9653237]
[1768139688960,0.002,3111.4,3111.2,4.9653237]
[1768139689748,0.002,3111.4,3111.3,0.98461587]
[1768139689950,0.002,3111.4,3111.3,1.80257796]
[1768139693323,0.002,3111.4,3111.3,5.01666853]
[1768139693656,0.002,3111.4,3111.3,4.03205266]
[1768139693860,0.002,3111.4,3111.3,0.81796209]
[1768139694066,0.002,3111.4,3111.3,5.01666853]
[1768139695762,0.002,3111.7,3111.3,5.01666853]
[1768139695965,0.002,3111.7,3111.4,0.82308565]
[1768139696330,0.002,3111.7,3111.4,4.03706787]
[1768139696867,0.002,3111.7,3111.4,0.82308565]
[1768139697043,0.50242806,3111.7,3111.1,3.21420042]
[1768139697243,0.50242806,3111.7,3111.1,3.46720042]
[1768139697566,0.50242806,3111.7,3111.2,3.21418252]
[1768139697732,0.50242806,3111.7,3111.1,3.46723808]
[1768139697932,0.50242806,3111.7,3111.1,3.21423808]
[1768139700465,0.002,3111.4,3111.1,3.21423808]
[1768139700762,0.002,3111.4,3111.1,3.8824097]
[1768139701346,0.002,3111.4,3111.1,4.86702557]
[1768139708079,0.002,3111.4,3111.2,0.99144795]
[1768139709352,0.002,3111.4,3111.3,0.99144795]
[1768139723199,0.002,3111.4,3111.2,4.20562962]
[1768139723399,0.002,3111.4,3111.3,0.99144795]
[1768139731180,0.002,3111.4,3111.0,0.253]
[1768139731902,0.002,3111.4,3110.9,0.12860847]
[1768139732238,0.002,3111.4,3110.9,3.46750042]
[1768139732813,0.002,3111.4,3110.9,0.253]
[1768139732995,0.002,3111.4,3110.9,4.45894027]
[1768139736245,0.002,3111.4,3111.2,0.001]
[1768139736418,0.002,3111.4,3110.9,3.46749232]
[1768139737855,0.50242806,3111.4,3110.9,0.253]
[1768139738854,0.50242806,3111.4,3110.9,3.46749197]
[1768139739646,0.50242806,3111.4,3110.9,0.253]
[1768139740851,0.31376701,3111.4,3110.9,0.253]
[1768139741715,3.56965644,3111.7,3110.9,1.21788613]
[1768139742015,0.35704589,3111.6,3110.9,1.21788613]
[1768139742212,0.04017354,3111.5,3110.9,1.21788613]
[1768139745657,0.35704589,3111.6,3110.9,1.21788613]
[1768139745658,3.61101106,3111.6,3110.9,1.21788613]
[1768139745848,0.39721814,3111.6,3110.9,1.21788613]
[1768139748430,0.39721814,3111.6,3111.2,0.001]
[1768139748625,0.70643996,3111.5,3110.9,0.253]
[1768139748956,0.002,3111.2,3110.9,0.253]
[1768139753969,0.002,3111.2,3111.0,0.96488613]
[1768139768783,0.002,3111.2,3110.9,0.253]
[1768139772809,0.002,3111.2,3110.9,1.16801832]
[1768139772970,0.002,3111.2,3111.0,1.35328041]
[1768139780912,0.002,3111.2,3111.0,0.43826209]
[1768139781116,0.002,3111.2,3110.9,0.253]
[1768139782713,0.002,3111.2,3111.0,0.91501832]
[1768139783095,0.002,3111.2,3110.8,0.91501832]
[1768139783406,0.26776701,3111.6,3110.8,0.91501832]
[1768139785516,0.26776701,3111.6,3111.2,0.001]
[1768139785815,0.34834497,3111.5,3110.8,0.91501832]
[1768139786015,0.26776701,3111.6,3110.8,0.91501832]
[1768139786517,0.26776701,3111.6,3110.8,4.12962123]
[1768139786818,0.26776701,3111.6,3110.9,0.91501832]
[1768139788719,0.26776701,3111.6,3110.7,0.31376701]
[1768139788720,0.26776701,3111.5,3110.7,0.31376701]
[1768139788919,0.30794055,3111.5,3110.6,0.253]
[1768139789120,0.30794055,3111.5,3110.6,0.69128857]
[1768139789291,0.30794055,3111.5,3110.6,4.82110693]
[1768139789726,0.30794055,3111.5,3110.7,0.91501832]
[1768139790124,3.5218525,3111.5,3110.7,0.91501832]
[1768139790492,0.26776701,3111.4,3110.5,1.87968731]
[1768139790718,6.46799744,3111.5,3110.5,0.91501832]
[1768139790719,0.94134346,3111.3,3110.5,0.91501832]
[1768139791107,0.26776701,3111.3,3110.5,0.91501832]
[1768139792636,3.48186531,3111.3,3110.5,0.91501832]
[1768139795708,3.48186531,3111.3,3110.6,0.253]
[1768139797818,3.48186531,3111.3,3110.8,0.001]
[1768139798020,3.48186531,3111.3,3110.6,0.253]
[1768139798317,4.15546052,3111.3,3110.6,0.253]
[1768139798516,0.26776701,3111.2,3110.6,0.253]
[1768139799203,3.92786964,3111.3,3110.6,0.253]
[1768139799414,3.92786964,3111.3,3110.6,1.22382032]
[1768139800132,4.19563665,3111.3,3110.6,1.22382032]
[1768139800521,0.26776701,3111.1,3110.4,0.97082032]
[1768139800703,0.26776701,3111.1,3110.2,3.22883084]
[1768139800704,0.26776701,3111.1,3110.2,0.00080224]
[1768139800903,0.26776701,3111.1,3110.3,0.96472483]
[1768139801199,0.26776701,3111.1,3110.2,0.97162256]
[1768139801949,0.26776701,3110.9,3110.2,0.00080224]
[1768139802105,0.26776701,3110.8,3110.2,0.00080224]
[1768139803639,0.26776701,3110.8,3110.1,0.97082032]
[1768139803825,0.00080224,3110.6,3110.1,0.97082032]
[1768139809544,0.00080224,3110.6,3110.4,0.001]
[1768139809712,0.00080224,3110.6,3110.1,0.97082032]
[1768139817559,0.26856925,3110.6,3109.9,0.001]
[1768139817938,0.37703634,3110.5,3109.9,0.001]
[1768139819639,3.21502057,3110.4,3109.9,0.001]
[1768139819899,0.35920569,3110.3,3109.9,0.001]
[1768139820065,0.35920569,3110.3,3109.9,0.97182032]
[1768139820366,0.35920569,3110.3,3109.9,0.95138342]
[1768139821647,0.35920569,3110.3,3110.2,0.001]
[1768139821835,0.35920569,3110.3,3109.9,0.95138342]
[1768139822035,0.35920569,3110.3,3109.9,0.79246508]
[1768139822273,0.35742529,3110.2,3109.5,0.97082032]
[1768139822565,0.35742529,3110.2,3109.7,0.97082032]
[1768139823077,0.35742529,3110.2,3109.7,0.95038344]
[1768139823535,0.35742529,3110.2,3109.6,0.253]
[1768139824556,4.10834872,3110.2,3109.5,0.97082032]
[1768139824742,0.7323495,3110.1,3109.4,1.20768128]
[1768139826385,0.7323495,3110.1,3109.5,0.95468128]
[1768139827149,3.94768387,3110.1,3109.5,0.95468128]
[1768139827552,3.94768387,3110.1,3109.4,0.253]
[1768139827856,3.94768387,3110.1,3109.5,0.92329972]
[1768139828058,0.75203431,3110.0,3109.5,0.76484135]
[1768139828256,0.75203431,3110.0,3109.4,0.253]
[1768139828257,1.44613468,3110.0,3109.4,0.253]
[1768139828460,1.44613468,3110.0,3109.3,0.92412722]
[1768139828763,0.69410037,3109.9,3109.3,0.0008275]
[1768139828962,0.69410037,3109.9,3109.2,0.0008028]
[1768139829156,0.69410037,3109.9,3109.1,0.92329972]
[1768139829157,0.0008028,3109.6,3109.1,0.89669516]
[1768139829777,0.32173746,3109.5,3109.0,1.17629972]
[1768139829984,0.32173746,3109.5,3108.8,0.253]
[1768139830179,1.27783657,3109.5,3108.5,0.92329972]
[1768139830553,0.95609911,3109.4,3108.5,0.92329972]
[1768139830851,0.95609911,3109.4,3108.6,0.92329972]
[1768139833162,0.95609911,3109.4,3108.9,0.002]
[1768139833358,1.75245277,3109.4,3108.6,0.92329972]
[1768139834168,4.96850969,3109.4,3108.6,0.92329972]
[1768139834375,4.01241058,3109.4,3108.6,0.92329972]
[1768139836058,4.96850969,3109.4,3108.6,0.92329972]
[1768139837381,4.01241058,3109.4,3108.6,0.92329972]
[1768139838099,0.95609911,3109.3,3108.6,0.92329972]
[1768139838296,4.01241058,3109.4,3108.6,0.92329972]
[1768139838499,0.95609911,3109.3,3108.5,0.002]
[1768139840092,0.95609911,3109.2,3108.5,0.002]
[1768139840700,0.95609911,3109.2,3108.5,1.36692528]
[1768139841006,3.21615816,3109.3,3108.6,0.92329972]
[1768139841296,0.95609911,3109.2,3108.5,0.44362556]
[1768139841492,3.21615816,3109.3,3108.5,1.36692528]
[1768139841678,3.21615816,3109.3,3108.6,0.92329972]
[1768139844017,4.96856197,3109.4,3108.6,0.92329972]
[1768139844319,0.95609911,3109.4,3108.7,0.92329972]
[1768139846250,4.17218788,3109.4,3108.7,0.92329972]
[1768139847350,0.0008028,3109.6,3108.9,0.92529972]
[1768139847512,0.001,3109.1,3108.9,0.84690851]
[1768139850409,0.04100089,3109.6,3109.1,0.92329972]
[1768139850736,0.0008028,3109.6,3109.1,0.92329972]
[1768139852756,0.0008028,3109.6,3109.2,0.92329972]
[1768139859732,0.97003022,3109.5,3109.0,3.21643844]
[1768139860030,0.001,3109.3,3109.1,0.36181707]
[1768139869700,0.001,3109.3,3109.1,1.33580686]
[1768139871019,0.001,3109.3,3109.1,4.55216583]
[1768139871222,0.001,3109.3,3109.2,0.97398979]
[1768139872197,0.001,3109.3,3109.1,0.36181707]
[1768139875022,0.001,3109.3,3109.1,3.57816016]
[1768139875224,0.001,3109.3,3109.1,0.36181707]
[1768139881340,0.001,3109.3,3109.2,0.97398979]
[1768139892172,0.001,3109.3,3109.0,3.2184155]
[1768139892375,0.001,3109.3,3109.0,4.15475654]
[1768139892879,0.001,3109.3,3109.1,0.93634104]
[1768139895579,0.001,3109.3,3109.0,3.2184155]
[1768139897088,0.001,3109.3,3109.0,4.15475654]
[1768139897593,0.001,3109.3,3109.0,3.2184155]
[1768139898789,0.98285082,3109.3,3109.0,3.2184155]
[1768139898992,0.98085082,3109.3,3109.0,3.88722085]
[1768139899194,0.98185082,3109.5,3109.0,0.67080535]
[1768139899401,0.98185082,3109.5,3109.0,0.002]
[1768139900493,0.97985082,3109.5,3109.0,0.002]
[1768139902263,0.97985082,3109.5,3108.9,0.253]
[1768139904706,0.98265362,3109.6,3108.9,0.253]
[1768139905899,0.98265362,3109.6,3108.6,3.21685513]
[1768139906095,0.98185082,3109.5,3108.7,0.253]
[1768139906274,0.98185082,3109.5,3108.7,3.4696975]
[1768139906675,0.98185082,3109.5,3108.8,3.21667011]
[1768139906877,0.98185082,3109.5,3108.8,3.23672489]
[1768139909496,0.98185082,3109.5,3109.0,0.002]
[1768139909709,0.98285082,3109.2,3109.0,0.002]
[1768139910366,0.98285082,3109.2,3108.7,0.253]
[1768139911362,0.98285082,3109.2,3108.7,1.18934104]
[1768139911363,0.001,3109.2,3108.7,1.18934104]
[1768139911801,0.001,3109.2,3108.6,0.002]
[1768139912014,0.001,3109.2,3108.6,0.255]
[1768139912216,0.98285082,3109.2,3108.6,0.255]
[1768139912510,4.19914587,3109.2,3108.6,0.255]
[1768139912710,0.98185082,3109.1,3108.6,0.002]
[1768139914102,0.42089184,3109.2,3108.6,0.002]
[1768139914403,1.37082347,3109.2,3108.6,0.002]
[1768139914569,0.45870344,3109.1,3108.6,0.002]
[1768139914984,0.45670344,3109.1,3108.6,0.002]
[1768139915811,0.94993163,3109.0,3108.6,0.002]
[1768139918707,0.45670344,3109.1,3108.6,0.002]
[1768139919273,3.67313693,3109.1,3108.6,0.002]
[1768139919478,0.46240686,3109.0,3108.6,0.002]
[1768139919909,1.41233849,3109.0,3108.5,0.002]
[1768139920212,0.94993163,3108.9,3108.5,0.002]
[1768139920407,0.94993163,3108.9,3108.3,0.00080384]
[1768139921911,0.94793163,3108.9,3108.3,0.00080384]
[1768139922124,0.94793163,3108.9,3108.5,0.002]
[1768139922294,1.45627917,3108.9,3108.3,0.00080384]
[1768139923388,0.94993163,3108.8,3108.3,0.00080384]
[1768139924034,0.50834754,3108.9,3108.3,0.00080384]
[1768139925927,1.45827917,3108.9,3108.3,0.00080384]
[1768139926091,0.94993163,3108.8,3108.3,0.00080384]
[1768139929005,0.94793163,3108.8,3108.3,0.00080384]
[1768139933927,0.94793163,3108.8,3108.6,0.002]
[1768139934126,0.94993163,3109.0,3108.3,0.00080384]
[1768139934318,0.94993163,3109.0,3108.3,0.00280384]
[1768139935236,1.4376324,3109.0,3108.3,0.00280384]
[1768139937745,0.94993163,3108.9,3108.3,0.00280384]
[1768139942220,0.94993163,3109.1,3108.3,0.97114912]
[1768139942618,0.001,3109.2,3108.3,0.97114912]
[1768139942831,0.001,3109.2,3108.4,1.68884871]
[1768139942832,0.95093163,3109.2,3108.4,1.68884871]
[1768139943051,0.95093163,3109.2,3108.5,0.02006351]
[1768139943345,0.001,3109.2,3108.5,0.96834012]
[1768139943929,0.001,3109.2,3108.6,0.95152278]
[1768139944122,0.001,3109.2,3108.7,0.02006027]
[1768139945152,0.001,3109.2,3108.7,0.97158305]
[1768139945448,0.001,3109.2,3108.7,0.95152278]
[1768139946377,0.001,3108.9,3108.7,0.95152278]
[1768139948463,0.001,3108.9,3108.7,4.16829999]
[1768139949336,0.001,3108.9,3108.8,0.96284675]
[1768139949530,0.001,3108.9,3108.8,0.94278518]
[1768139950450,0.001,3108.9,3108.8,4.15946042]
[1768139950642,0.001,3108.9,3108.8,4.17952102]
[1768139954273,0.001,3108.9,3108.8,3.23673584]
[1768139954568,0.001,3108.9,3108.8,3.87601116]
[1768139955773,0.001,3108.9,3108.8,3.85595056]
[1768139955939,0.001,3108.9,3108.8,3.87601116]
[1768139962233,0.001,3108.9,3108.8,4.81879634]
[1768139962978,0.001,3109.2,3108.9,0.94278518]
[1768139963183,0.001,3109.2,3109.0,0.7405721]
[1768139968025,0.001,3109.2,3109.0,4.89975504]
[1768139968402,0.001,3109.2,3109.0,3.95696986]
[1768139972790,0.001,3109.2,3109.0,0.7405721]
[1768139975824,0.001,3109.2,3108.8,3.8559007]
[1768139981533,0.001,3109.2,3108.8,0.63927532]
[1768139981744,0.001,3108.9,3108.8,0.63927532]
[1768139986841,0.001,3108.9,3108.6,0.255]
[1768139991243,0.001,3109.2,3108.9,0.933976]
[1768139991922,0.001,3109.2,3108.7,0.933976]
[1768139992441,0.001,3109.2,3108.8,3.21667524]
[1768139994044,0.001,3108.9,3108.8,3.21667524]
[1768139994367,0.001,3108.9,3108.8,3.9809338]
[1768139998166,0.001,3108.9,3108.8,0.76425856]
[1768140002773,0.001,3108.9,3108.8,3.9809338]
[1768140002978,0.001,3108.9,3108.8,4.0009944]
[1768140003369,0.001,3108.9,3108.8,3.9809338]
[1768140003875,0.001,3108.9,3108.8,1.7200253]
[1768140004184,0.001,3108.9,3108.8,4.93670054]
[1768140006291,0.9089101,3109.4,3108.8,3.9809338]
[1768140006656,0.9089101,3109.4,3108.8,0.76425856]
[1768140006857,0.9089101,3109.4,3108.7,3.2367819]
[1768140013411,0.9089101,3109.4,3108.6,4.42757493]
[1768140013774,0.9089101,3109.4,3108.6,3.47180819]
[1768140014400,0.90611942,3109.3,3108.6,0.255]
[1768140014804,0.90611942,3109.3,3108.7,0.253]
[1768140014981,0.90611942,3109.3,3108.7,0.60219992]
[1768140017705,0.90611942,3109.3,3109.0,0.002]
[1768140017914,0.90611942,3109.3,3109.0,0.00028595]
[1768140026624,3.21666897,3109.6,3109.0,0.00028595]
[1768140026625,0.0008028,3109.6,3109.0,0.00028595]
[1768140027590,0.90692222,3109.6,3109.0,0.00028595]
[1768140027792,1.3193744,3109.6,3109.0,0.00028595]
[1768140029094,0.001,3109.3,3109.0,0.00028595]
[1768140035850,0.001,3109.3,3109.0,0.96138315]
[1768140037532,0.001,3109.3,3109.0,4.1778278]
[1768140042254,0.001,3109.3,3109.0,4.15777431]
[1768140042420,0.001,3109.3,3109.0,0.94132966]
[1768140042622,0.001,3109.3,3109.0,0.00028595]
[1768140047338,0.91984679,3109.3,3109.0,0.00028595]
[1768140048239,0.91984679,3109.3,3108.8,0.253]
[1768140052465,0.001,3109.0,3108.8,0.253]
[1768140053045,0.001,3109.0,3108.9,0.94104371]
[1768140053364,0.001,3109.0,3108.9,4.15761548]
[1768140056464,0.001,3109.0,3108.8,3.46963843]
[1768140057144,0.001,3109.0,3108.8,0.253]
[1768140059678,0.001,3109.0,3108.8,4.41070098]
[1768140059975,0.001,3109.0,3108.9,1.38211381]
[1768140061384,0.001,3109.0,3108.9,0.4410701]
[1768140066390,0.001,3109.0,3108.8,0.253]
[1768140078701,0.00039174,3109.3,3108.8,3.46966893]
[1768140078900,0.00039174,3109.3,3108.8,4.45366342]
[1768140079102,0.0008028,3109.6,3108.9,1.00405055]
[1768140080900,0.0008028,3109.6,3109.1,0.98399449]
[1768140081100,0.0008028,3109.6,3109.2,0.98399449]
[1768140082921,0.0008028,3109.6,3109.2,4.20024318]
[1768140087542,0.0008028,3109.6,3109.2,3.21824869]
[1768140087902,0.001,3109.3,3109.2,3.21824869]
[1768140099421,0.96796643,3109.5,3109.2,3.21824869]
[1768140099615,0.96796643,3109.5,3109.3,0.71783054]
[1768140102277,0.96796643,3109.5,3109.3,3.93398605]
[1768140102562,0.96796643,3109.5,3109.3,0.71783054]
[1768140102754,0.96796643,3109.5,3109.3,3.933978]
[1768140103662,0.0008028,3109.6,3109.3,3.933978]
[1768140104459,0.0008028,3109.6,3109.4,1.70729588]
[1768140105159,0.0008028,3109.6,3109.4,0.71521689]
[1768140106061,0.0008028,3109.6,3109.5,3.21595111]
[1768140110687,0.0008028,3109.6,3109.4,3.93122121]
[1768140110987,0.0008028,3109.6,3109.4,3.21600432]
[1768140111980,0.0008028,3109.6,3109.2,0.002]
[1768140112185,0.0008028,3109.6,3109.2,0.74470156]
[1768140112564,0.0008028,3109.6,3109.2,1.73678055]
[1768140113124,0.0008028,3109.6,3109.3,3.21615797]
[1768140119875,0.0008028,3109.6,3109.3,4.20823696]
[1768140120255,0.0008028,3109.6,3109.3,7.42439493]
[1768140120455,0.0008028,3109.6,3109.3,8.24130458]
[1768140122098,0.0008028,3109.6,3109.3,5.02514661]
[1768140127608,0.0008028,3109.6,3109.3,8.24130458]
[1768140129808,0.0008028,3109.6,3109.4,0.90947706]
[1768140130782,0.0008028,3109.6,3109.5,0.02004347]
[1768140131007,0.0008028,3109.6,3109.5,1.72735167]
[1768140131210,0.77609565,3110.3,3109.5,1.72735167]
[1768140131211,0.73590661,3110.3,3109.5,1.72735167]
[1768140131908,0.04018775,3110.4,3109.6,4.12532475]
[1768140132115,0.77609436,3110.4,3109.7,0.90947706]
[1768140132310,0.77609436,3110.4,3109.6,6.43169538]
[1768140132511,0.94286486,3110.3,3109.6,6.43169538]
[1768140132702,0.94286486,3110.3,3109.6,3.21584769]
[1768140133915,0.94286486,3110.3,3109.6,7.34117244]
[1768140134118,0.00080224,3110.6,3109.7,0.90947706]
[1768140134582,0.00080224,3110.6,3109.9,0.90947706]
[1768140135021,0.001,3110.1,3109.9,0.90947706]
[1768140135821,0.002,3111.0,3110.1,0.90947706]
[1768140136118,0.73590661,3110.8,3110.2,0.00080232]
[1768140137995,0.77608919,3110.8,3110.2,0.00080232]
[1768140138512,0.73590661,3110.8,3110.2,0.00080232]
[1768140141191,0.04218,3111.0,3110.2,0.91027938]
[1768140141619,0.002,3111.0,3110.2,0.91027938]
[1768140141783,0.002,3111.0,3110.2,1.09978728]
[1768140142316,0.002,3111.0,3110.3,4.124601]
[1768140142514,0.002,3111.0,3110.3,3.21512394]
[1768140142697,0.002,3111.0,3110.4,0.90947706]
[1768140144395,0.002,3111.0,3110.5,0.90947706]
[1768140146320,0.002,3111.0,3110.6,0.90947706]
[1768140146621,0.002,3111.0,3110.7,0.41243596]
[1768140146831,0.002,3111.0,3110.6,0.90947706]
[1768140147127,0.002,3111.0,3110.5,0.001]
[1768140147484,0.002,3110.7,3110.5,0.001]
[1768140148384,0.002,3110.7,3110.5,0.91047706]
[1768140150342,0.002,3110.7,3110.5,4.12529139]
[1768140150489,0.002,3110.7,3110.6,0.80781676]
[1768140151901,0.002,3110.7,3110.6,4.93210768]
[1768140153119,0.002,3111.0,3110.6,4.04264468]
[1768140153522,0.002,3111.0,3110.6,4.02263062]
[1768140154026,0.73790661,3111.0,3110.6,4.02263062]
[1768140154211,0.73790661,3111.0,3110.7,3.95142199]
[1768140158248,0.002,3111.0,3110.7,3.95142199]
[1768140158624,0.002,3111.0,3110.7,0.73671526]
[1768140160810,0.002,3111.0,3110.5,0.12962749]
[1768140161551,0.002,3111.0,3110.5,0.001]
[1768140161552,0.73790661,3111.0,3110.5,0.001]
[1768140161846,0.7760879,3110.9,3110.2,1.90636057]
[1768140164363,0.7760879,3110.9,3110.2,0.98970893]
[1768140166372,0.7760879,3110.9,3110.2,4.20493473]
[1768140166665,0.7760879,3110.9,3110.2,5.12158637]
[1768140167266,0.7760879,3110.9,3110.3,0.51215864]
[1768140167970,0.04218,3111.0,3110.3,1.42881028]
[1768140168176,0.002,3111.0,3110.4,0.91665164]
[1768140168340,0.002,3111.0,3110.5,0.91665164]
[1768140170775,0.002,3110.7,3110.5,0.91665164]
[1768140170941,0.002,3110.7,3110.6,0.91665164]
[1768140187180,0.002,3110.7,3110.6,4.1314655]
[1768140187682,0.002,3110.7,3110.6,0.91665164]
[1768140188208,0.002,3110.7,3110.5,0.93981097]
[1768140188413,0.002,3110.7,3110.2,0.00080232]
[1768140189207,0.002,3110.7,3110.2,0.9197545]
[1768140189801,0.002,3110.7,3110.2,0.00080232]
[1768140190004,0.73590661,3110.5,3109.7,0.01285037]
[1768140190211,0.253,3110.4,3109.9,0.01285037]
[1768140190515,0.253,3110.4,3109.7,0.93180255]
[1768140190730,0.73590661,3110.3,3109.9,0.01285037]
[1768140191014,0.00080232,3110.6,3109.9,0.91895218]
[1768140191313,0.253,3110.3,3110.0,0.01285037]
[1768140191492,0.73590661,3110.5,3110.0,0.93180255]
[1768140191493,0.253,3110.5,3110.0,0.93180255]
[1768140191888,0.00080232,3110.6,3110.0,0.93180255]
[1768140192107,0.253,3110.5,3110.0,0.93180255]
[1768140194124,0.80423847,3110.4,3110.0,0.01285037]
[1768140194332,0.253,3110.5,3110.0,0.93180255]
[1768140194634,0.253,3110.5,3110.3,0.001]
[1768140194835,0.60407177,3110.5,3110.0,0.93180255]
[1768140195001,0.253,3110.5,3110.0,0.93180255]
[1768140197338,0.00080232,3110.6,3110.3,0.91895218]
[1768140197840,0.00080232,3110.6,3110.3,0.50731673]
[1768140200723,0.00080232,3110.6,3110.2,0.01285037]
[1768140205675,0.00080232,3110.6,3110.2,0.93180255]
[1768140206429,0.002,3110.3,3110.2,0.93180255]
[1768140206630,0.00280232,3110.6,3110.2,0.93180255]
[1768140218681,0.002,3110.3,3110.2,0.93180255]
[1768140224186,0.002,3110.3,3110.2,0.01285037]
[1768140235309,0.002,3110.3,3110.2,3.22807768]
[1768140237506,0.002,3110.3,3110.2,0.01285037]
[1768140237805,0.002,3110.3,3110.2,3.22807768]
[1768140239904,0.002,3110.3,3110.2,0.01285037]
[1768140240111,0.002,3110.3,3110.2,3.22807768]
[1768140240709,0.002,3110.3,3110.2,0.01285037]
[1768140241900,0.002,3110.3,3110.2,3.22807768]
[1768140243414,0.002,3110.3,3110.2,0.01285037]
[1768140247484,0.002,3110.3,3110.2,3.22807768]
[1768140251218,0.00280232,3110.6,3110.2,3.22807768]
[1768140251389,0.00280232,3110.6,3110.4,0.01285037]
[1768140252714,0.00280232,3110.6,3110.4,3.22783948]
[1768140253216,0.94059759,3110.9,3110.4,3.22783948]
[1768140253414,0.002,3111.0,3110.6,0.01285037]
[1768140253595,0.002,3111.0,3110.8,0.01285037]
[1768140255629,0.002,3111.0,3110.9,3.21450384]
[1768140261029,0.9024163,3111.3,3110.9,6.42900768]
[1768140261199,0.002,3111.3,3110.9,6.42900768]
[1768140261398,0.002,3111.3,3111.0,0.64418581]
[1768140261715,0.002,3111.3,3111.0,0.65703618]
[1768140262934,0.002,3111.3,3111.1,3.21429719]
[1768140263198,0.002,3111.3,3111.2,0.253]
[1768140266219,0.002,3111.3,3111.2,3.46719388]
[1768140266530,0.002,3111.3,3111.2,3.8151983]
[1768140267031,0.002,3111.3,3111.2,3.83126901]
[1768140267642,0.002,3111.7,3111.2,7.04546289]
[1768140267836,1.02882818,3112.0,3111.4,0.00080256]
[1768140268039,0.94258468,3111.9,3111.4,0.00080256]
[1768140268550,0.002,3112.3,3111.7,0.01607071]
[1768140268750,0.002,3112.3,3111.9,0.94919159]
[1768140269044,0.002,3112.3,3111.9,0.01607071]
[1768140269246,0.002,3112.3,3111.9,0.94919159]
[1768140270313,0.002,3112.3,3112.1,3.21321103]
[1768140270532,0.002,3112.3,3112.1,4.14633191]
[1768140273440,0.002,3112.3,3112.1,0.93312088]
[1768140273749,0.002,3112.3,3112.0,3.21333019]
[1768140273914,0.002,3112.3,3112.0,3.9762364]
[1768140275356,0.002,3112.3,3112.1,0.01607071]
[1768140276038,0.002,3112.3,3112.0,0.76290621]
[1768140276348,0.002,3112.3,3111.8,0.253]
[1768140276740,0.97147633,3112.3,3111.8,0.253]
[1768140277131,0.002,3112.3,3111.9,0.92529311]
[1768140277332,0.002,3112.3,3111.8,0.253]
[1768140278858,0.002,3112.0,3111.8,0.253]
[1768140279856,0.002,3112.0,3111.8,0.69380511]
[1768140280035,0.002,3112.0,3111.8,0.253]
[1768140283161,0.002,3112.0,3111.9,0.253]
[1768140283466,0.002,3112.0,3111.8,0.253]
[1768140283659,0.002,3112.0,3111.8,0.03069527]
[1768140283852,0.002,3112.0,3111.5,0.01607071]
[1768140284053,0.002,3112.0,3111.6,0.253]
[1768140284757,0.002,3112.0,3111.7,0.01607071]
[1768140292389,0.002,3112.0,3111.6,0.253]
[1768140296263,0.002,3112.0,3111.7,0.01607071]
[1768140297484,0.002,3112.0,3111.6,1.17829311]
[1768140299296,0.002,3112.0,3111.6,0.253]
[1768140300597,0.002,3112.0,3111.7,0.01607071]
[1768140300777,0.002,3112.0,3111.7,0.94136382]
[1768140301099,0.002,3112.3,3111.9,0.94136382]
[1768140301297,0.002,3112.3,3112.2,0.92529311]
[1768140301598,0.002,3112.3,3112.1,0.26907071]
[1768140302872,0.002,3112.3,3112.1,0.253]
[1768140303078,0.002,3112.3,3112.1,2e-08]
[1768140307519,0.32770179,3112.3,3112.1,2e-08]
[1768140307720,0.9856067,3112.2,3111.9,0.253]
[1768140307897,0.9856067,3112.2,3111.7,0.253]
[1768140308725,0.04016451,3112.2,3111.7,0.253]
[1768140309295,0.002,3112.3,3111.8,0.96424149]
[1768140309514,0.002,3112.3,3112.0,0.96424149]
[1768140309825,0.002,3112.3,3112.0,1.38361665]
[1768140311191,0.002,3112.3,3112.0,0.96424149]
[1768140315328,0.002,3112.3,3111.8,0.96424149]
[1768140315621,0.002,3112.3,3111.7,3.48268883]
[1768140315622,0.002,3112.0,3111.7,3.48268883]
[1768140316018,0.002,3112.0,3111.8,3.21355906]
[1768140316735,0.002,3112.3,3112.0,0.96424149]
[1768140316941,0.002,3112.3,3112.2,0.96424149]
[1768140317593,0.002,3112.6,3112.4,0.96424149]
[1768140321516,0.97600617,3113.9,3112.8,0.96424149]
[1768140321825,0.97800617,3113.6,3112.9,0.253]
[1768140322010,0.02020111,3113.5,3112.9,0.253]
[1768140322210,0.02020111,3113.5,3112.9,1.21724149]
[1768140322441,0.02020111,3113.5,3113.0,0.96424149]
[1768140323135,0.02220111,3113.6,3113.0,0.96424149]
[1768140323340,0.3234628,3113.5,3113.0,0.96424149]
[1768140323716,0.02220111,3113.6,3113.0,0.96424149]
[1768140324210,3.23393093,3113.6,3113.0,0.96424149]
[1768140324411,0.99820728,3113.6,3112.9,0.253]
[1768140325044,0.97600617,3113.5,3112.9,0.253]
[1768140325209,0.99620728,3113.4,3112.9,0.253]
[1768140325410,4.20815287,3113.4,3112.9,0.253]
[1768140325607,0.42081529,3113.3,3112.9,0.253]
[1768140325830,0.02020111,3113.2,3112.9,0.253]
[1768140326712,0.4410164,3113.3,3112.9,0.253]
[1768140328153,0.002,3113.2,3112.9,0.253]
[1768140330152,0.002,3113.2,3113.0,0.96424149]
[1768140333329,0.002,3113.2,3112.9,0.28512438]
[1768140333535,0.002,3113.2,3112.9,0.253]
[1768140336884,0.002,3113.2,3112.9,1.16993426]
[1768140337053,0.002,3113.2,3113.0,0.91693426]
[1768140342053,3.18862108,3113.7,3113.3,0.00080328]
[1768140342275,0.73676271,3113.6,3113.0,0.91693426]
[1768140342906,0.73676271,3113.6,3112.9,0.253]
[1768140342907,0.02020111,3113.5,3112.9,0.253]
[1768140343911,0.02020111,3113.5,3112.9,1.16993426]